[Event "Rapid Tournament (RAP)"]
[Site "Biel, Switzerland"]
[Date "2026.07.12"]
[Round "1.1"]
[White "Amonatov, Farrukh"]
[Black "Rohde, Bernhard"]
[Result "1-0"]
[TimeControl "15 + 5"]
[WhiteTitle "-"]
[BlackTitle "-"]
[WhiteFideId "14700077"]
[BlackFideId "1323016"]
[WhiteElo "2593"]
[BlackElo "1834"]

1. e4 {[%clk 00:15:07]} {[%emt 00:00:02]} e6 {[%clk 00:15:10]} {[%emt
00:00:01]} 2. d4 {[%clk 00:15:10]} d5 {[%clk 00:15:12]} {[%emt 00:00:03]} 3.
Nc3 {[%clk 00:15:13]} {[%emt 00:00:01]} Bb4 {[%clk 00:14:56]} {[%emt 00:00:22]}
4. e5 {[%clk 00:15:16]} {[%emt 00:00:01]} c5 {[%clk 00:13:55]} {[%emt
00:01:07]} 5. a3 {[%clk 00:15:18]} {[%emt 00:00:03]} cxd4 {[%clk 00:13:41]}
{[%emt 00:00:19]} 6. axb4 {[%clk 00:15:10]} {[%emt 00:00:13]} dxc3 {[%clk
00:13:44]} {[%emt 00:00:03]} 7. bxc3 {[%clk 00:15:09]} {[%emt 00:00:05]} Nc6
{[%clk 00:13:05]} {[%emt 00:00:44]} 8. Nf3 {[%clk 00:15:08]} {[%emt 00:00:05]}
Nge7 {[%clk 00:12:41]} {[%emt 00:00:29]} 9. b5 {[%clk 00:14:59]} {[%emt
00:00:14]} Nb8 {[%clk 00:12:07]} {[%emt 00:00:40]} 10. Bd3 {[%clk 00:14:59]}
{[%emt 00:00:04]} Qc7 {[%clk 00:11:56]} {[%emt 00:00:17]} 11. O-O {[%clk
00:14:59]} {[%emt 00:00:04]} Ng6 {[%clk 00:10:56]} {[%emt 00:01:06]} 12. Re1
{[%clk 00:14:58]} {[%emt 00:00:04]} Nd7 {[%clk 00:10:37]} {[%emt 00:00:26]} 13.
Qe2 {[%clk 00:14:57]} {[%emt 00:00:05]} O-O {[%clk 00:10:04]} {[%emt 00:00:38]}
14. h4 {[%clk 00:14:46]} {[%emt 00:00:16]} Nc5 {[%clk 00:09:25]} {[%emt
00:00:44]} 15. h5 {[%clk 00:14:48]} {[%emt 00:00:02]} Nxd3 {[%clk 00:09:23]}
{[%emt 00:00:08]} 16. cxd3 {[%clk 00:14:49]} {[%emt 00:00:03]} Ne7 {[%clk
00:08:33]} {[%emt 00:00:57]} 17. h6 {[%clk 00:14:49]} {[%emt 00:00:03]} g6
{[%clk 00:08:34]} {[%emt 00:00:05]} 18. Ba3 {[%clk 00:14:39]} {[%emt 00:00:15]}
Re8 {[%clk 00:07:49]} {[%emt 00:00:50]} 19. Qd2 {[%clk 00:14:40]} {[%emt
00:00:03]} Bd7 {[%clk 00:07:36]} {[%emt 00:00:18]} 20. Qg5 {[%clk 00:14:39]}
{[%emt 00:00:05]} Nf5 {[%clk 00:07:11]} {[%emt 00:00:32]} 21. g4 {[%clk
00:14:41]} {[%emt 00:00:02]} Nxh6 {[%clk 00:06:53]} {[%emt 00:00:24]} 22. Qxh6
{[%clk 00:14:43]} {[%emt 00:00:02]} Bxb5 {[%clk 00:06:56]} {[%emt 00:00:03]} 23.
Ng5 {[%clk 00:14:45]} {[%emt 00:00:02]} f5 {[%clk 00:06:23]} {[%emt 00:00:39]}
24. exf6 {[%clk 00:14:47]} {[%emt 00:00:03]} 1-0

[Event "Rapid Tournament (RAP)"]
[Site "Biel, Switzerland"]
[Date "2026.07.12"]
[Round "1.2"]
[White "Duric, Ivan"]
[Black "Kozak, Adam"]
[Result "0-1"]
[TimeControl "15 + 5"]
[WhiteTitle "-"]
[BlackTitle "-"]
[WhiteFideId "1358138"]
[BlackFideId "753246"]
[WhiteElo "1832"]
[BlackElo "2592"]

1. d4 {[%clk 00:15:07]} {[%emt 00:00:03]} Nf6 {[%clk 00:15:07]} {[%emt
00:00:03]} 2. c4 {[%clk 00:15:11]} {[%emt 00:00:02]} e6 {[%clk 00:15:09]}
{[%emt 00:00:04]} 3. Nc3 {[%clk 00:15:14]} {[%emt 00:00:02]} d5 {[%clk
00:15:04]} {[%emt 00:00:09]} 4. Bg5 {[%clk 00:15:16]} {[%emt 00:00:03]} Nbd7
{[%clk 00:14:43]} {[%emt 00:00:26]} 5. Nf3 {[%clk 00:14:55]} {[%emt 00:00:26]}
c6 {[%clk 00:14:35]} {[%emt 00:00:13]} 6. e3 {[%clk 00:14:57]} {[%emt
00:00:03]} Qa5 {[%clk 00:14:37]} {[%emt 00:00:04]} 7. Bd3 {[%clk 00:13:43]}
{[%emt 00:01:20]} Ne4 {[%clk 00:14:28]} {[%emt 00:00:13]} 8. Qc2 {[%clk
00:13:27]} {[%emt 00:00:21]} Nxg5 {[%clk 00:14:27]} {[%emt 00:00:06]} 9. Nxg5
{[%clk 00:12:11]} {[%emt 00:01:22]} dxc4 {[%clk 00:14:29]} {[%emt 00:00:02]} 10.
Bxc4 {[%clk 00:10:44]} {[%emt 00:01:32]} Qxg5 {[%clk 00:14:31]} {[%emt
00:00:03]} 11. f4 {[%clk 00:10:17]} {[%emt 00:00:32]} Qa5 {[%clk 00:14:12]}
{[%emt 00:00:24]} 12. O-O {[%clk 00:10:11]} {[%emt 00:00:11]} g6 {[%clk
00:13:54]} {[%emt 00:00:23]} 13. Ne4 {[%clk 00:10:06]} {[%emt 00:00:10]} Be7
{[%clk 00:13:48]} {[%emt 00:00:11]} 14. Ng3 {[%clk 00:08:41]} {[%emt 00:01:30]}
Nb6 {[%clk 00:13:25]} {[%emt 00:00:28]} 15. Bd3 {[%clk 00:08:16]} {[%emt
00:00:30]} Nd5 {[%clk 00:13:25]} {[%emt 00:00:06]} 16. Rae1 {[%clk 00:08:05]}
{[%emt 00:00:16]} O-O {[%clk 00:13:17]} {[%emt 00:00:12]} 17. e4 {[%clk
00:08:02]} {[%emt 00:00:08]} Nb4 {[%clk 00:13:19]} {[%emt 00:00:03]} 18. Qd2
{[%clk 00:08:03]} {[%emt 00:00:04]} Qb6 {[%clk 00:12:47]} {[%emt 00:00:37]} 19.
Bb1 {[%clk 00:08:02]} {[%emt 00:00:06]} Rd8 {[%clk 00:12:42]} {[%emt 00:00:09]}
20. Rd1 {[%clk 00:07:06]} {[%emt 00:01:02]} Rxd4 {[%clk 00:12:41]} {[%emt
00:00:06]} 21. Qxd4 {[%clk 00:06:29]} {[%emt 00:00:42]} Bc5 {[%clk 00:12:44]}
{[%emt 00:00:03]} 0-1

[Event "Rapid Tournament (RAP)"]
[Site "Biel, Switzerland"]
[Date "2026.07.12"]
[Round "1.3"]
[White "Bu, Xiangzhi"]
[Black "Gaier, Walter"]
[Result "1-0"]
[TimeControl "15 + 5"]
[WhiteTitle "-"]
[BlackTitle "-"]
[WhiteFideId "8601445"]
[BlackFideId "1310186"]
[WhiteElo "2583"]
[BlackElo "1832"]

1. Nf3 {[%clk 00:15:06]} {[%emt 00:00:03]} Nf6 {[%clk 00:15:05]} {[%emt
00:00:06]} 2. c4 {[%clk 00:15:10]} {[%emt 00:00:01]} c5 {[%clk 00:15:04]}
{[%emt 00:00:06]} 3. Nc3 {[%clk 00:15:12]} {[%emt 00:00:02]} Nc6 {[%clk
00:15:05]} {[%emt 00:00:05]} 4. g3 {[%clk 00:15:11]} {[%emt 00:00:06]} g6
{[%clk 00:15:03]} {[%emt 00:00:07]} 5. Bg2 {[%clk 00:15:13]} {[%emt 00:00:02]}
Bg7 {[%clk 00:15:03]} {[%emt 00:00:05]} 6. d4 {[%clk 00:15:16]} {[%emt
00:00:02]} cxd4 {[%clk 00:14:50]} {[%emt 00:00:19]} 7. Nxd4 {[%clk 00:15:19]}
{[%emt 00:00:02]} O-O {[%clk 00:14:50]} {[%emt 00:00:05]} 8. O-O {[%clk
00:15:21]} {[%emt 00:00:03]} Qb6 {[%clk 00:14:08]} {[%emt 00:00:47]} 9. Nc2
{[%clk 00:15:09]} {[%emt 00:00:17]} d6 {[%clk 00:12:58]} {[%emt 00:01:15]} 10.
b3 {[%clk 00:15:12]} {[%emt 00:00:03]} Bg4 {[%clk 00:11:25]} {[%emt 00:01:37]}
11. h3 {[%clk 00:15:00]} {[%emt 00:00:17]} Bd7 {[%clk 00:11:28]} {[%emt
00:00:02]} 12. e4 {[%clk 00:14:30]} {[%emt 00:00:35]} Qa5 {[%clk 00:10:02]}
{[%emt 00:01:31]} 13. Nd5 {[%clk 00:13:42]} {[%emt 00:00:53]} Rac8 {[%clk
00:07:03]} {[%emt 00:03:04]} 14. Bd2 {[%clk 00:13:23]} {[%emt 00:00:23]} Qd8
{[%clk 00:07:02]} {[%emt 00:00:07]} 15. Rc1 {[%clk 00:13:08]} {[%emt 00:00:20]}
e6 {[%clk 00:06:17]} {[%emt 00:00:50]} 16. Nc3 {[%clk 00:12:54]} {[%emt
00:00:19]} Qc7 {[%clk 00:05:08]} {[%emt 00:01:14]} 17. Bf4 {[%clk 00:11:55]}
{[%emt 00:01:03]} Ne5 {[%clk 00:04:28]} {[%emt 00:00:46]} 18. Qd2 {[%clk
00:11:46]} {[%emt 00:00:14]} Rcd8 {[%clk 00:04:20]} {[%emt 00:00:13]} 19. Rfd1
{[%clk 00:11:43]} {[%emt 00:00:07]} Bc6 {[%clk 00:04:20]} {[%emt 00:00:05]} 20.
Bg5 {[%clk 00:11:25]} {[%emt 00:00:24]} Rfe8 {[%clk 00:01:59]} {[%emt
00:02:26]} 21. Qf4 {[%clk 00:10:55]} {[%emt 00:00:35]} Qe7 {[%clk 00:01:56]}
{[%emt 00:00:09]} 22. c5 {[%clk 00:10:36]} {[%emt 00:00:23]} h6 {[%clk
00:01:29]} {[%emt 00:00:33]} 23. Bxf6 {[%clk 00:10:15]} {[%emt 00:00:25]} Qxf6
{[%clk 00:01:29]} {[%emt 00:00:05]} 24. cxd6 {[%clk 00:10:17]} {[%emt
00:00:03]} Rd7 {[%clk 00:01:23]} {[%emt 00:00:11]} 25. Qxf6 {[%clk 00:09:28]}
{[%emt 00:00:54]} Bxf6 {[%clk 00:01:26]} {[%emt 00:00:02]} 26. Ne3 {[%clk
00:09:22]} {[%emt 00:00:11]} g5 {[%clk 00:01:22]} {[%emt 00:00:09]} 27. f4
{[%clk 00:09:24]} {[%emt 00:00:03]} gxf4 {[%clk 00:01:22]} {[%emt 00:00:06]} 28.
gxf4 {[%clk 00:09:27]} {[%emt 00:00:01]} Ng6 {[%clk 00:01:25]} {[%emt
00:00:01]} 29. e5 {[%clk 00:09:27]} {[%emt 00:00:05]} Bxg2 {[%clk 00:01:19]}
{[%emt 00:00:12]} 30. Nxg2 {[%clk 00:09:31]} {[%emt 00:00:01]} Bh4 {[%clk
00:01:16]} {[%emt 00:00:08]} 31. Nxh4 {[%clk 00:09:27]} {[%emt 00:00:09]} Nxh4
{[%clk 00:01:20]} 32. Ne4 {[%clk 00:09:31]} {[%emt 00:00:01]} 1-0

[Event "Rapid Tournament (RAP)"]
[Site "Biel, Switzerland"]
[Date "2026.07.12"]
[Round "1.4"]
[White "Di Meo, Quentin"]
[Black "Ganguly, Surya Shekhar"]
[Result "0-1"]
[TimeControl "15 + 5"]
[WhiteTitle "-"]
[BlackTitle "-"]
[WhiteFideId "1338498"]
[BlackFideId "5002150"]
[WhiteElo "1828"]
[BlackElo "2545"]

1. c4 {[%clk 00:15:07]} {[%emt 00:00:03]} e5 {[%clk 00:15:06]} {[%emt
00:00:05]} 2. Nc3 {[%clk 00:15:05]} {[%emt 00:00:06]} Nf6 {[%clk 00:15:03]}
{[%emt 00:00:08]} 3. g3 {[%clk 00:15:00]} {[%emt 00:00:10]} d5 {[%clk
00:15:06]} {[%emt 00:00:03]} 4. cxd5 {[%clk 00:14:57]} {[%emt 00:00:08]} Nxd5
{[%clk 00:15:09]} {[%emt 00:00:02]} 5. Bg2 {[%clk 00:14:58]} {[%emt 00:00:03]}
Nb6 {[%clk 00:15:12]} {[%emt 00:00:02]} 6. Nf3 {[%clk 00:14:32]} {[%emt
00:00:30]} Nc6 {[%clk 00:15:16]} {[%emt 00:00:02]} 7. O-O {[%clk 00:13:56]}
{[%emt 00:00:41]} Be7 {[%clk 00:15:19]} {[%emt 00:00:02]} 8. d3 {[%clk
00:13:43]} {[%emt 00:00:18]} O-O {[%clk 00:15:20]} {[%emt 00:00:03]} 9. Bd2
{[%clk 00:13:23]} {[%emt 00:00:25]} Be6 {[%clk 00:14:52]} {[%emt 00:00:34]} 10.
Rc1 {[%clk 00:12:13]} {[%emt 00:01:14]} f5 {[%clk 00:14:04]} {[%emt 00:00:54]}
11. Ne1 {[%clk 00:11:24]} {[%emt 00:00:54]} Qd7 {[%clk 00:13:51]} {[%emt
00:00:18]} 12. Na4 {[%clk 00:10:23]} {[%emt 00:01:05]} Bxa2 {[%clk 00:12:47]}
{[%emt 00:01:09]} 13. Nc5 {[%clk 00:09:38]} {[%emt 00:00:50]} Bxc5 {[%clk
00:12:49]} {[%emt 00:00:03]} 14. Rxc5 {[%clk 00:09:40]} {[%emt 00:00:03]} Qd6
{[%clk 00:12:24]} {[%emt 00:00:30]} 15. Rc1 {[%clk 00:08:18]} {[%emt 00:01:27]}
Nd4 {[%clk 00:11:57]} {[%emt 00:00:32]} 16. e3 {[%clk 00:06:05]} {[%emt
00:02:18]} Bb3 {[%clk 00:11:52]} {[%emt 00:00:09]} 17. Qh5 {[%clk 00:05:46]}
{[%emt 00:00:24]} g6 {[%clk 00:11:52]} {[%emt 00:00:05]} 18. Qh4 {[%clk
00:05:26]} {[%emt 00:00:24]} Ne2+ {[%clk 00:11:53]} {[%emt 00:00:05]} 19. Kh1
{[%clk 00:05:29]} {[%emt 00:00:02]} Nxc1 {[%clk 00:11:56]} {[%emt 00:00:03]} 20.
Bxc1 {[%clk 00:05:30]} {[%emt 00:00:03]} Bd5 {[%clk 00:11:51]} {[%emt
00:00:10]} 21. Bd2 {[%clk 00:05:06]} {[%emt 00:00:29]} Bxg2+ {[%clk 00:11:52]}
{[%emt 00:00:05]} 22. Kxg2 {[%clk 00:05:08]} {[%emt 00:00:03]} e4 {[%clk
00:11:14]} {[%emt 00:00:44]} 23. Bc3 {[%clk 00:04:14]} {[%emt 00:00:59]} Nd5
{[%clk 00:10:36]} {[%emt 00:00:42]} 24. dxe4 {[%clk 00:03:46]} {[%emt
00:00:32]} Nxc3 {[%clk 00:10:39]} {[%emt 00:00:02]} 25. bxc3 {[%clk 00:03:46]}
{[%emt 00:00:05]} Qc6 {[%clk 00:10:43]} {[%emt 00:00:02]} 26. Kg1 {[%clk
00:02:55]} {[%emt 00:00:55]} Qxe4 {[%clk 00:10:40]} {[%emt 00:00:09]} 27. Qh6
{[%clk 00:02:42]} {[%emt 00:00:17]} a5 {[%clk 00:10:24]} {[%emt 00:00:21]} 28.
Ng2 {[%clk 00:02:31]} {[%emt 00:00:16]} Qe5 {[%clk 00:09:57]} {[%emt 00:00:32]}
29. h4 {[%clk 00:02:18]} {[%emt 00:00:17]} a4 {[%clk 00:09:57]} {[%emt
00:00:06]} 30. h5 {[%clk 00:01:53]} {[%emt 00:00:30]} Qg7 {[%clk 00:10:01]}
{[%emt 00:00:02]} 31. Qg5 {[%clk 00:01:30]} {[%emt 00:00:27]} h6 {[%clk
00:10:03]} {[%emt 00:00:03]} 32. Qxg6 {[%clk 00:01:15]} {[%emt 00:00:19]} Qxg6
{[%clk 00:10:07]} {[%emt 00:00:02]} 33. hxg6 {[%clk 00:01:18]} {[%emt
00:00:02]} a3 {[%clk 00:10:10]} {[%emt 00:00:02]} 34. Nf4 {[%clk 00:01:09]}
{[%emt 00:00:13]} a2 {[%clk 00:10:13]} {[%emt 00:00:03]} 35. Ra1 {[%clk
00:01:10]} {[%emt 00:00:04]} Rfd8 {[%clk 00:10:06]} {[%emt 00:00:12]} 36. Kf1
{[%clk 00:00:47]} {[%emt 00:00:28]} Rd2 {[%clk 00:10:08]} {[%emt 00:00:03]} 0-1

[Event "Rapid Tournament (RAP)"]
[Site "Biel, Switzerland"]
[Date "2026.07.12"]
[Round "1.6"]
[White "Yang, Sung-Jui"]
[Black "Alexakis, Dimitris"]
[Result "0-1"]
[TimeControl "15 + 5"]
[WhiteTitle "-"]
[BlackTitle "-"]
[WhiteFideId "16301048"]
[BlackFideId "4277023"]
[WhiteElo "1825"]
[BlackElo "2518"]

1. e4 {[%clk 00:15:07]} {[%emt 00:00:02]} c5 {[%clk 00:15:08]} {[%emt
00:00:03]} 2. Nc3 {[%clk 00:15:09]} {[%emt 00:00:03]} e6 {[%clk 00:15:03]}
{[%emt 00:00:10]} 3. f4 {[%clk 00:15:11]} {[%emt 00:00:03]} d5 {[%clk
00:15:05]} {[%emt 00:00:02]} 4. Bb5+ {[%clk 00:14:19]} {[%emt 00:00:57]} Bd7
{[%clk 00:14:42]} {[%emt 00:00:28]} 5. Bxd7+ {[%clk 00:14:08]} {[%emt
00:00:17]} Qxd7 {[%clk 00:14:45]} {[%emt 00:00:02]} 6. d3 {[%clk 00:14:08]}
{[%emt 00:00:04]} Nc6 {[%clk 00:14:47]} {[%emt 00:00:03]} 7. Nf3 {[%clk
00:14:08]} {[%emt 00:00:05]} O-O-O {[%clk 00:14:45]} {[%emt 00:00:07]} 8. O-O
{[%clk 00:14:05]} {[%emt 00:00:08]} h5 {[%clk 00:14:45]} {[%emt 00:00:05]} 9.
a3 {[%clk 00:13:18]} {[%emt 00:00:53]} Nf6 {[%clk 00:13:46]} {[%emt 00:01:04]}
10. Ng5 {[%clk 00:11:25]} {[%emt 00:01:58]} h4 {[%clk 00:12:40]} {[%emt
00:01:11]} 11. e5 {[%clk 00:10:18]} {[%emt 00:01:11]} Ng8 {[%clk 00:12:03]}
{[%emt 00:00:42]} 12. Qf3 {[%clk 00:08:43]} {[%emt 00:01:40]} f6 {[%clk
00:11:26]} {[%emt 00:00:42]} 13. exf6 {[%clk 00:08:02]} {[%emt 00:00:46]} gxf6
{[%clk 00:11:29]} {[%emt 00:00:02]} 14. Nh3 {[%clk 00:08:03]} {[%emt 00:00:04]}
Nge7 {[%clk 00:11:26]} {[%emt 00:00:08]} 15. Ne2 {[%clk 00:07:29]} {[%emt
00:00:39]} Nf5 {[%clk 00:11:22]} {[%emt 00:00:08]} 16. c3 {[%clk 00:06:58]}
{[%emt 00:00:36]} c4 {[%clk 00:10:20]} {[%emt 00:01:07]} 17. d4 {[%clk
00:06:45]} {[%emt 00:00:19]} Be7 {[%clk 00:10:03]} {[%emt 00:00:23]} 18. Be3
{[%clk 00:06:20]} {[%emt 00:00:30]} Rdg8 {[%clk 00:09:59]} {[%emt 00:00:08]} 19.
Rab1 {[%clk 00:06:02]} {[%emt 00:00:22]} Rh7 {[%clk 00:09:41]} {[%emt
00:00:24]} 20. b3 {[%clk 00:04:45]} {[%emt 00:01:23]} cxb3 {[%clk 00:09:38]}
{[%emt 00:00:08]} 21. Rxb3 {[%clk 00:04:49]} {[%emt 00:00:01]} Na5 {[%clk
00:09:36]} {[%emt 00:00:07]} 22. Rbb1 {[%clk 00:04:43]} {[%emt 00:00:11]} Rhg7
{[%clk 00:09:38]} {[%emt 00:00:03]} 23. Rf2 {[%clk 00:04:42]} {[%emt 00:00:06]}
Nc4 {[%clk 00:09:31]} {[%emt 00:00:12]} 24. Bc1 {[%clk 00:04:41]} {[%emt
00:00:06]} Nfd6 {[%clk 00:07:48]} {[%emt 00:01:48]} 25. g3 {[%clk 00:03:39]}
{[%emt 00:01:07]} Ne4 {[%clk 00:07:29]} {[%emt 00:00:24]} 26. Rg2 {[%clk
00:03:41]} {[%emt 00:00:02]} Ned2 {[%clk 00:06:29]} {[%emt 00:01:05]} 27. Bxd2
{[%clk 00:03:13]} {[%emt 00:00:33]} Nxd2 {[%clk 00:06:32]} {[%emt 00:00:02]} 28.
Qd3 {[%clk 00:03:17]} {[%emt 00:00:01]} Nxb1 {[%clk 00:06:35]} {[%emt
00:00:02]} 29. Qxb1 {[%clk 00:03:21]} {[%emt 00:00:01]} e5 {[%clk 00:06:35]}
{[%emt 00:00:05]} 30. Nf2 {[%clk 00:03:19]} {[%emt 00:00:07]} hxg3 {[%clk
00:06:37]} {[%emt 00:00:03]} 31. hxg3 {[%clk 00:03:21]} {[%emt 00:00:03]} exf4
{[%clk 00:06:19]} {[%emt 00:00:23]} 32. Nxf4 {[%clk 00:02:57]} {[%emt
00:00:29]} Rxg3 {[%clk 00:06:19]} 33. Kh2 {[%clk 00:01:11]} {[%emt 00:01:56]}
Bd6 {[%clk 00:05:09]} {[%emt 00:01:15]} 34. Qd3 {[%clk 00:00:12]} {[%emt
00:01:04]} Rxg2+ {[%clk 00:05:08]} {[%emt 00:00:05]} 0-1

[Event "Rapid Tournament (RAP)"]
[Site "Biel, Switzerland"]
[Date "2026.07.12"]
[Round "1.7"]
[White "Aronyak, Ghosh"]
[Black "Brixius, Dirk"]
[Result "1-0"]
[TimeControl "15 + 5"]
[WhiteTitle "-"]
[BlackTitle "-"]
[WhiteFideId "25072846"]
[BlackFideId "12909734"]
[WhiteElo "2482"]
[BlackElo "1821"]

1. Nf3 {[%clk 00:14:45]} {[%emt 00:00:24]} c6 {[%clk 00:14:45]} {[%emt
00:00:26]} 2. d4 {[%clk 00:14:38]} {[%emt 00:00:12]} d5 {[%clk 00:14:43]}
{[%emt 00:00:07]} 3. Bf4 {[%clk 00:14:39]} {[%emt 00:00:03]} Nf6 {[%clk
00:14:26]} {[%emt 00:00:23]} 4. e3 {[%clk 00:14:41]} {[%emt 00:00:02]} Nh5
{[%clk 00:13:56]} {[%emt 00:00:36]} 5. Bg5 {[%clk 00:13:28]} {[%emt 00:01:18]}
h6 {[%clk 00:13:20]} {[%emt 00:00:42]} 6. Bh4 {[%clk 00:13:29]} {[%emt
00:00:02]} Nd7 {[%clk 00:12:44]} {[%emt 00:00:42]} 7. Nfd2 {[%clk 00:12:38]}
{[%emt 00:00:55]} Nhf6 {[%clk 00:12:33]} {[%emt 00:00:16]} 8. c4 {[%clk
00:12:39]} {[%emt 00:00:05]} e6 {[%clk 00:12:20]} {[%emt 00:00:18]} 9. Nc3
{[%clk 00:12:38]} {[%emt 00:00:06]} Be7 {[%clk 00:12:15]} {[%emt 00:00:10]} 10.
Bg3 {[%clk 00:12:29]} {[%emt 00:00:14]} O-O {[%clk 00:11:29]} {[%emt 00:00:51]}
11. Be2 {[%clk 00:12:18]} {[%emt 00:00:16]} Re8 {[%clk 00:11:32]} {[%emt
00:00:03]} 12. O-O {[%clk 00:12:18]} {[%emt 00:00:04]} dxc4 {[%clk 00:10:59]}
{[%emt 00:00:38]} 13. Nxc4 {[%clk 00:12:14]} {[%emt 00:00:09]} Nb6 {[%clk
00:10:27]} {[%emt 00:00:37]} 14. Ne5 {[%clk 00:10:58]} {[%emt 00:01:21]} Nbd5
{[%clk 00:09:53]} {[%emt 00:00:39]} 15. Qc2 {[%clk 00:10:42]} {[%emt 00:00:20]}
Nxc3 {[%clk 00:08:12]} {[%emt 00:01:46]} 16. bxc3 {[%clk 00:10:43]} {[%emt
00:00:05]} Bd6 {[%clk 00:07:24]} {[%emt 00:00:53]} 17. Rfd1 {[%clk 00:10:36]}
{[%emt 00:00:11]} Qe7 {[%clk 00:06:57]} {[%emt 00:00:32]} 18. a4 {[%clk
00:09:42]} {[%emt 00:01:00]} Bd7 {[%clk 00:06:16]} {[%emt 00:00:46]} 19. Bh4
{[%clk 00:09:03]} {[%emt 00:00:44]} g5 {[%clk 00:05:34]} {[%emt 00:00:47]} 20.
Bg3 {[%clk 00:09:03]} {[%emt 00:00:04]} Rac8 {[%clk 00:05:06]} {[%emt
00:00:34]} 21. e4 {[%clk 00:08:13]} {[%emt 00:00:55]} c5 {[%clk 00:04:50]}
{[%emt 00:00:22]} 22. Nxd7 {[%clk 00:07:59]} {[%emt 00:00:18]} Nxd7 {[%clk
00:04:36]} {[%emt 00:00:19]} 23. e5 {[%clk 00:08:00]} {[%emt 00:00:03]} Bb8
{[%clk 00:04:29]} {[%emt 00:00:13]} 24. Qe4 {[%clk 00:08:02]} {[%emt 00:00:03]}
Nb6 {[%clk 00:04:08]} {[%emt 00:00:26]} 25. Bd3 {[%clk 00:07:20]} {[%emt
00:00:47]} f5 {[%clk 00:03:44]} {[%emt 00:00:28]} 26. exf6 {[%clk 00:07:21]}
{[%emt 00:00:05]} Qxf6 {[%clk 00:03:46]} {[%emt 00:00:04]} 27. Re1 {[%clk
00:05:59]} {[%emt 00:01:26]} cxd4 {[%clk 00:02:50]} {[%emt 00:01:01]} 28. cxd4
{[%clk 00:05:33]} {[%emt 00:00:31]} Nd5 {[%clk 00:02:43]} {[%emt 00:00:12]} 29.
Bxb8 {[%clk 00:05:08]} {[%emt 00:00:30]} Rxb8 {[%clk 00:02:43]} {[%emt
00:00:05]} 30. Ra3 {[%clk 00:05:09]} {[%emt 00:00:04]} Re7 {[%clk 00:02:40]}
{[%emt 00:00:08]} 31. Bc4 {[%clk 00:04:55]} {[%emt 00:00:18]} Rf8 {[%clk
00:02:20]} {[%emt 00:00:26]} 32. Rf3 {[%clk 00:04:51]} {[%emt 00:00:09]} Nf4
{[%clk 00:02:17]} {[%emt 00:00:08]} 33. g3 {[%clk 00:02:58]} {[%emt 00:01:58]}
Nh3+ {[%clk 00:02:10]} {[%emt 00:00:12]} 34. Kg2 {[%clk 00:03:01]} Qxf3+ {[%clk
00:01:53]} {[%emt 00:00:23]} 35. Qxf3 {[%clk 00:03:05]} {[%emt 00:00:02]} Rxf3
{[%clk 00:01:52]} 36. Kxf3 {[%clk 00:03:08]} {[%emt 00:00:07]} g4+ {[%clk
00:01:20]} {[%emt 00:00:38]} 37. Kxg4 {[%clk 00:02:53]} {[%emt 00:00:19]} Nxf2+
{[%clk 00:01:23]} {[%emt 00:00:01]} 38. Kh5 {[%clk 00:02:06]} {[%emt 00:00:53]}
Kg7 {[%clk 00:01:16]} {[%emt 00:00:12]} 39. Re2 {[%clk 00:01:32]} {[%emt
00:00:38]} Nd1 {[%clk 00:00:58]} {[%emt 00:00:23]} 40. Rxe6 {[%clk 00:01:14]}
{[%emt 00:00:24]} Rxe6 {[%clk 00:01:02]} {[%emt 00:00:01]} 41. Bxe6 {[%clk
00:01:18]} {[%emt 00:00:01]} Nc3 {[%clk 00:01:06]} {[%emt 00:00:01]} 42. Bb3
{[%clk 00:01:11]} {[%emt 00:00:12]} Ne4 {[%clk 00:01:04]} {[%emt 00:00:08]} 43.
Kg4 {[%clk 00:01:05]} {[%emt 00:00:10]} Kf6 {[%clk 00:00:58]} {[%emt 00:00:11]}
44. Kf4 {[%clk 00:01:07]} {[%emt 00:00:03]} Nd6 {[%clk 00:00:58]} {[%emt
00:00:05]} 45. g4 {[%clk 00:01:10]} {[%emt 00:00:02]} a6 {[%clk 00:00:56]}
{[%emt 00:00:07]} 46. a5 {[%clk 00:00:50]} {[%emt 00:00:25]} Nc8 {[%clk
00:00:46]} {[%emt 00:00:15]} 47. Bc4 {[%clk 00:00:42]} {[%emt 00:00:13]} Nd6
{[%clk 00:00:47]} {[%emt 00:00:04]} 48. Bd5 {[%clk 00:00:43]} {[%emt 00:00:04]}
Nb5 {[%clk 00:00:28]} {[%emt 00:00:24]} 49. Ke3 {[%clk 00:00:27]} {[%emt
00:00:21]} Nd6 {[%clk 00:00:28]} {[%emt 00:00:05]} 50. h4 {[%clk 00:00:30]}
{[%emt 00:00:02]} Ke7 {[%clk 00:00:12]} {[%emt 00:00:21]} 51. Kf4 {[%clk
00:00:31]} {[%emt 00:00:04]} Kf6 {[%clk 00:00:16]} {[%emt 00:00:01]} 52. g5+
{[%clk 00:00:30]} {[%emt 00:00:06]} hxg5+ {[%clk 00:00:19]} {[%emt 00:00:02]}
53. hxg5+ {[%clk 00:00:34]} {[%emt 00:00:01]} Kg6 {[%clk 00:00:18]} {[%emt
00:00:06]} 54. Ke5 {[%clk 00:00:31]} {[%emt 00:00:07]} Nf7+ {[%clk 00:00:23]}
{[%emt 00:00:01]} 55. Bxf7+ {[%clk 00:00:32]} {[%emt 00:00:04]} Kxf7 {[%clk
00:00:26]} {[%emt 00:00:02]} 56. d5 {[%clk 00:00:34]} {[%emt 00:00:02]} 1-0